Cogmind - Beta 13 X1 @@@ ROGUE MODE // 2023.08.13 @ 12:10:14 Player: f3-rnm Result: Destroyed by S-10 Pest with Light Assault Rifle Performance ------------- Evolutions (0) 0 Regions Visited (1) 200 Robots Destroyed (9) 45 Value Destroyed (190) 190 Prototype IDs (0) 0 Alien Tech Used (0) 0 Bonus (0) 0 TOTAL SCORE: 435 Bonus ------- None Cogmind --------- Core Integrity 0/250 Matter 300/300 Energy 100/100 System Corruption 0% Temperature Cool (0) Movement Core (100) Ox1 Location -10/Materials Parts ------- > --- POWER (1) -------- (None) > --- PROPULSION (2) --- (None) > --- UTILITY (2) ------ Small Storage Unit > --- WEAPON (2) ------- (None) > --- INVENTORY (8) ---- Ion Engine Ion Engine Aluminum Leg Wheel Structural Scanner Seismic Detector Peak State ------------ > --- POWER ------------ Ion Engine > --- PROPULSION ------- Aluminum Leg Aluminum Leg > --- UTILITY ---------- Small Storage Unit Seismic Detector > --- WEAPON ----------- Medium Laser Medium Laser > --- INVENTORY -------- Ion Engine Wheel [Rating: 7] Favorites ----------- Power Ion Engine Engine Ion Engine Propulsion Aluminum Leg Leg Aluminum Leg Utility Small Storage Unit Device Seismic Detector Storage Small Storage Unit Weapon Medium Laser Energy Gun Medium Laser Build | -11 -10 ------- Run | Jun Mat Slots Evolved . | . . Power . | . . Propulsion . | . . Utility . | . . Weapon . | . . Parts Attached 10 | 6 4 Power 2 | 1 1 Engine 2 | 1 1 Core . | . . Reactor . | . . Propulsion 4 | 2 2 Treads . | . . Leg 4 | 2 2 Wheel . | . . Hover . | . . Flight . | . . Utility 2 | 1 1 Device 1 | . 1 Storage 1 | 1 . Processor . | . . Hackware . | . . Protection . | . . Artifact . | . . Weapon 2 | 2 . Energy Gun 2 | 2 . Energy Cannon . | . . Ballistic Gun . | . . Ballistic Cannon . | . . Launcher . | . . Special Weapon . | . . Impact Weapon . | . . Slashing Weapon . | . . Piercing Weapon . | . . Special Melee Weapon . | . . Unidentified Prototypes . | . . Parts Lost 2 | . 2 Power . | . . Propulsion 1 | . 1 Utility . | . . Weapon 1 | . 1 Highest Loss Streak 1 | . 1 To Critical Strikes . | . . Average Slot Usage (%) 84 | . 84 Engine 13 | . 13 Leg 22 | . 22 Device 9 | . 9 Storage 14 | . 14 Energy Gun 23 | . 23 Naked Turns . | . . Heaviest Build 15 | 14 15 Greatest Support 20 | 20 20 Greatest Overweight (x) 3 | . 3 Average Overweight (x) . | . . Largest Inventory Capacity 8 | 8 8 Average Capacity 7 | 6 8 Most Carried 7 | 4 7 Average Carried 3 | 1 3 Final Capacity 8 | 8 8 Final Carried 6 | 2 6 Class Distribution -------------------- 100% | Mutant Dominant Class ---------------- Mutant | -10/Materials Resources | -11 -10 ----------- Run | Jun Mat Matter Collected 295 | 115 180 Remotely . | . . Salvage Created 312 | . 312 Parts 13 | . 13 Haulers Intercepted . | . . Recyclers Shooed 2 | . 2 Parts Field Recycled . | . . Retrieved Matter . | . . Parts Self-Destructed . | . . Prevented . | . . Kills | -11 -10 ------- Run | Jun Mat Combat Hostiles Destroyed 7 | . 7 Guns 6 | . 6 Classes Destroyed 4 | . 4 Builder 1 | . 1 Recycler 1 | . 1 Swarmer 3 | . 3 Grunt 4 | . 4 Best Kill Streak 4 | . 4 Combat Bots Only 4 | . 4 Max Kills in Single Turn 1 | . 1 Gunslinging . | . . Exploded . | . . Melee . | . . Uniques/NPCs Destroyed . | . . Combat | -11 -10 -------- Run | Jun Mat Damage Taken 603 | . 603 Core 256 | . 256 Absorbed by Shields . | . . Core Remaining (%) 100 | 100 . Volleys Fired 27 | . 27 Largest 2 | . 2 Hottest 100 | . 100 Shots Fired 39 | . 39 Gun 39 | . 39 Cannon . | . . Launcher . | . . Special . | . . Kinetic . | . . Thermal 39 | . 39 Explosive . | . . Electromagnetic . | . . Robot Hit Streak 7 | . 7 Robot Miss Streak 4 | . 4 Penetration Max . | . . Secondary Targets . | . . Shots Hit Robots 21 | . 21 Core Hits 12 | . 12 Critical Kills . | . . Critical Parts Destroyed . | . . Critical Strikes 4 | . 4 Burn 4 | . 4 Melee Attacks . | . . Impact . | . . Slashing . | . . Piercing . | . . Sneak Attacks . | . . Combat Hostiles . | . . Follow-up Attacks . | . . Damage Inflicted 320 | . 320 Guns 311 | . 311 Cannons . | . . Explosions . | . . Melee . | . . Ramming 9 | . 9 Kinetic . | . . Thermal 311 | . 311 Explosive . | . . Electromagnetic . | . . Impact . | . . Slashing . | . . Piercing . | . . Highest Corruption . | . . Average Corruption . | . . Corruption Purged . | . . Corruption Blocked . | . . Overload Shots . | . . Overflow Damage . | . . Projectiles . | . . Explosions . | . . Melee . | . . Knockbacks . | . . Impact . | . . Kinetic . | . . Secondary . | . . Self-Inflicted Damage 4 | . 4 Shots . | . . Rammed 2 | . 2 Targets Rammed 2 | . 2 Kicked . | . . Crushed . | . . Highest Temperature 135 | . 135 Average Temperature 54 | . 54 Received Heat Transfer 159 | . 159 Siege Activations . | . . Robots Corrupted . | . . Combat Hostiles . | . . Parts Fried . | . . Impact Corruptions . | . . Robots Melted 1 | . 1 Combat Hostiles 1 | . 1 Parts Melted 7 | . 7 Heat Transferred 1221 | . 1221 Parts Sabotaged . | . . Parts Stolen . | . . Parts Stripped . | . . Power Chain Reactions . | . . Missiles Intercepted . | . . Alert | -11 -10 ------- Run | Jun Mat Peak Influence 213 | . 213 Initial . | . . Average 67 | . 78 Maximum Alert Level 1 | . 1 Low Security (%) 89 | 100 87 Level 1 10 | . 12 Level 2 . | . . Level 3 . | . . Level 4 . | . . Level 5 . | . . High Security . | . . Max Security . | . . Squads Dispatched . | . . Investigation . | . . Extermination . | . . Reinforcement . | . . Assault . | . . Garrison . | . . Intercept . | . . Searches Triggered . | . . Construction Impeded . | . . Haulers Reinforced . | . . Active Scanning Responses . | . . Cargo Convoy Interrupts . | . . Stealth | -11 -10 --------- Run | Jun Mat Distress Signals 1 | . 1 Communications Jammed . | . . Distress Signals . | . . Times Spotted 17 | . 17 Peak Tracking Total 7 | . 7 Tactical Retreats 1 | . 1 Traps | -11 -10 ------- Run | Jun Mat Traps Triggered 4 | . 4 Indirectly . | . . Trap Hack Attempts . | . . Triggered . | . . Disarmed . | . . Reprogrammed . | . . Reused . | . . Traps Extracted . | . . Installed . | . . Triggered . | . . Machines | -11 -10 ---------- Run | Jun Mat Machines Disabled . | . . Max in Single Turn . | . . Machines Repaired . | . . Machines Sabotaged . | . . Overloaded Fab Kills . | . . Hacking | -11 -10 --------- Run | Jun Mat Machines Accessed 1 | . 1 Terminals 1 | . 1 Fabricators . | . . Repair Stations . | . . Recycling Units . | . . Scanalyzers . | . . Garrison Access . | . . Total Hacks 1 | . 1 Successful 1 | . 1 Failed . | . . Catastrophic . | . . Database Lockouts . | . . Manual 1 | . 1 Terminals 1 | . 1 Fabricators . | . . Repair Stations . | . . Recycling Units . | . . Scanalyzers . | . . Garrison Access . | . . Terminal Hacks 1 | . 1 Branch Access Points 1 | . 1 Fabricator Hacks . | . . Repair Station Hacks . | . . Recycling Unit Hacks . | . . Scanalyzer . | . . Garrison Access Hacks . | . . Unauthorized Hacks . | . . Terminals . | . . Fabricators . | . . Repair Stations . | . . Recycling Units . | . . Scanalyzers . | . . Garrison Access . | . . Data Cores Recovered . | . . Used . | . . Hacking Detections . | . . Full Trace Events . | . . Feedback Events . | . . Feedback Blocked . | . . Robot Schematics Acquired . | . . Robots Built . | . . Authchips . | . . Time . | . . Total Robot Build Rating . | . . Part Schematics Acquired . | . . Parts Built . | . . Authchips . | . . Time . | . . Total Part Build Rating . | . . Parts Repaired . | . . Time . | . . Parts Recycled . | . . Recycled Matter . | . . Retrieved Matter . | . . Retrieved Components . | . . Parts Scanalyzed . | . . Part Schematics Acquired . | . . Parts Damaged . | . . Bothacking | -11 -10 ------------ Run | Jun Mat Used RIF Installer . | . . Robots Hacked . | . . Non-combat . | . . Combat . | . . Robot Hacks Applied . | . . Relay Couplers Released . | . . Fabnet Peak Effective % . | . . Robots Rewired . | . . Allies Hacked . | . . Hacks Repelled . | . . Allies | -11 -10 -------- Run | Jun Mat Total Allies . | . . Largest Group . | . . Highest-Rated Group . | . . Highest-Rated Ally . | . . Total Orders . | . . Ally Attacks . | . . Total Damage . | . . Kills . | . . Allies Corrupted . | . . Allies Melted . | . . Intel | -11 -10 ------- Run | Jun Mat Robot Analysis Total . | . . Derelict Logs Recovered . | . . Drone Launches . | . . Drone Recoveries . | . . Exploration | -11 -10 ------------- Run | Jun Mat Turns Passed 461 | 62 399 Spaces Moved 242 | 45 197 Core 25 | 8 17 Treads . | . . Legs 217 | 37 180 Wheels . | . . Hover . | . . Flight . | . . Fastest Speed 50 | 50 100 Average Speed 124 | 107 128 Slowest Speed 200 | 120 200 Overloaded Moves . | . . Propulsion Burnouts . | . . Robots Hopped . | . . Cave-ins Triggered . | . . Exploration Rate (%) 14 | 4 24 Regions Visited 1 Branch Regions . Pre-discovered Areas . | . . Known Exits Taken . | . . Unknown Exits Taken 1 | 1 . Scrap Searched . | . . Spaces Dug . | . . Terrain Destroyed . | . . Melee . | . . Projectile . | . . AOE . | . . Terrain Rammed . | . . Walls Destroyed . | . . Machines Disabled . | . . Actions | -11 -10 --------- Run | Jun Mat Total 362 | 58 304 Wait 66 | . 66 Move 241 | 44 197 Hop . | . . Pick Up 16 | 8 8 Fast Attach . | . . Attach 10 | 6 4 Detach . | . . Swap . | . . Drop . | . . Fire 27 | . 27 Melee . | . . Ram 2 | . 2 Kick . | . . Crush . | . . Escape Stasis . | . . Rewire . | . . Trap . | . . Miscellaneous . | . . Route ------- -11/Junkyard -10/Materials (discovered 2 exits: Min x2) History --------- Turn | Location | Event 25 | -11/Junkyard | Discovered new exit (range 16) 63 | -11/Junkyard | Entered Materials 310 | -10/Materials | Build established: Mutant 339 | -10/Materials | Identified exit to Mines 422 | -10/Materials | Core integrity fell below 50% 460 | -10/Materials | Core integrity fell below 20% 462 | -10/Materials | Destroyed by S-10 Pest with Light Assault Rifle Last Messages --------------- 00388_ R-06 Scavenger collects Lgt. Ion Engine. 00389_ Aluminum Leg destroyed. 00392_ R-06 Scavenger collects Lgt. Assault Rifle. 00397_ Flight Unit melted. 00397_ Lgt. Ion Engine melted. 00397_ S-10 Pest destroyed. 00397_ R-06 Scavenger collects Flight Unit. 00403_ Acquired 15 matter. 00414_ W-16 Scout sends out distress signal. 00425_ Acquired 10 matter. 00441_ Med. Laser destroyed. 00446_ Triggered Blade Trap. 00446_ Massive razor-sharp blades shoot up from within the floor. 00446_ Aluminum Leg severed. 00446_ Ion Engine severed. 00447_ Acquired Aluminum Leg. 00448_ Triggered Blade Trap. 00448_ Massive razor-sharp blades shoot up from within the floor. 00450_ R-06 Scavenger collects Ion Engine. 00460_ Slammed into S-10 Pest. Map ----- +----------------------------------------------------+ | ?????????????????????????????????# * #?# | | ?????????????????????????????????#######+###?#* | | ???????????????????????????????????????# #???# | | ???????????????????????????????????????# #???# | | ?????????????????????????????########### #???? | | ?????????????????????????????# """ # #?????? | | ?????????????????????????????# "Y" # ######### | | ?????????????????????????????# " " # | | ?????????????????????????????# """ + | | ??????????????????????>??????# """ # | | ?????????????????????????????# """ #########+# | | ?????????????????????????????# """ #????# | | ?????????????????????????????# #????# | | ?????????????????????????????#######/###????# | | ???????????????????????????????????# ######## """ | | ???????????????????????????????????# # ]# """" | | ???????????????????????????????????# # # """" | | ???????????????????????????????????# # """ # """" | | ???????????????????????????????????# # """ # """ | | ??????????????????????????????????##%# """ # | | ??????????????????????????????????# + ###### | | ??????????????????????????????????# # "T" #????? | | ??????????????????????????????????#% + #????? | | ????????????????????# ????????????# ########????? | | ????????????????????# ########### ### #????? | | ????????????????????# s@% r g #????? | | ????????????????????# ss w g +????? | | ????????????????????#w############# #### #????? | | ??????????????????????????????????# #??## ##????? | | ??????????????????????????????????#%#???# #?????? | | ???????????????????????????????####/##### #?????? | | ???????????????????????????????# % # #?????? | | ???????????????????????????????# # #?????? | | ???????????????????????????????# # #?????? | | ???????????????????????????????# = %# #?????? | | ???????????????????????????????# + +?????? | | ?????????????????????????????" + ! # #?????? | | ??????????????????????????? "" # # #?????? | | ???????????????????????????"""?# + ????? | | ???????????????????????????????# # ???? | | ???????????????????????????????########## #??? | | ????????????????????????????????????????# #?? | | ?????????????????????????????????????????! !#?? | | ?????????????????????????????????????????#!!!!##?? | | ??????????????????????????????????????????#####??? | | ?????????????????????????????????????????????????? | | ?????????????????????????????????????????????????? | | | | | | | +----------------------------------------------------+ Best States ------------- Heat Dissipation 25 Energy Generation 10 Energy Capacity 250 Matter Stores 300 Matter Capacity 300 Sight Range 16 Terrain Scan Density 10 Evasion (%) 55 Item Schematics ----------------- None Robot Schematics ------------------ None Fabricated ------------ Nothing Alien Tech Used ----------------- None Achievements -------------- None Challenges ------------ None Game ------ Seed TitaniumGrapheneCompressor Manual? 0 Play Time 00:04:33 Cumulative 54.0 hours Start 2023.08.13 @ 12:00:57 End 2023.08.13 @ 12:10:14 Sessions 1 Manual Loads 0 Difficulty Rogue Special Mode None Game No. 44 Rogue 8 Adventurer 36 Explorer 0 Win Type - Total 6 Types 1/0/5/0/0/0/0/0/0 Lore% 39 Gallery% 59 Achievement% 51 Wizard Run 0 Options --------- ASCII 0 Keyboard 0 Movement Mouse Keybinds 0 Fullscreen 1 Font 18/SmallcapsGlow Map View 76x50 Tactical HUD 1 Map Filters NONE Filters NONE Steam 1 RUN: d643a82c-d983-4c6d-a06f-ca81e3beea44